bitfinex-derivatives/quotes_BTCF0:USTF0_20241029
["timestamp","ask_amount","ask_price","bid_price","bid_amount"]
[1730163241103,0.13747263,70020.0,70014.0,0.064308]
[1730163241304,0.18546089,70016.0,70015.0,0.064307]
[1730163241608,0.13010279,70016.0,70015.0,0.064307]
[1730163242900,0.13011237,70016.0,70015.0,0.064307]
[1730163243403,0.13011237,70016.0,70014.0,0.001]
[1730163243599,0.13011237,70015.0,70014.0,0.064308]
[1730163243801,0.13011237,70015.0,70014.0,0.001]
[1730163244105,0.18401237,70015.0,70014.0,0.001]
[1730163244301,0.18401237,70015.0,70010.0,0.06645312]
[1730163244506,0.3148207,70014.0,70013.0,0.064309]
[1730163244697,0.18470833,70014.0,70013.0,0.064309]
[1730163245107,0.18470833,70014.0,70012.0,0.13747263]
[1730163245322,0.06431,70011.0,70010.0,0.00214212]
[1730163246506,0.06431,70011.0,70010.0,0.04467976]
[1730163247016,0.18670833,70014.0,70010.0,0.00214212]
[1730163247803,0.18470833,70014.0,70010.0,0.00214212]
[1730163248121,0.18470833,70014.0,70010.0,0.00414212]
[1730163248412,0.18470833,70014.0,70010.0,0.00314212]
[1730163248605,0.18870833,70014.0,70010.0,0.00314212]
[1730163248806,0.064309,70013.0,70010.0,0.00214212]
[1730163249203,0.06431,70012.0,70010.0,0.00214212]
[1730163249404,0.06431,70011.0,70010.0,0.00214212]
[1730163249604,0.20178263,70011.0,70010.0,0.00214212]
[1730163250715,0.06431,70011.0,70007.0,0.10685164]
[1730163250935,0.19137263,70015.0,70010.0,0.064311]
[1730163250936,0.002,70013.0,70010.0,0.064311]
[1730163251118,0.002,70013.0,70012.0,0.20178263]
[1730163251500,0.002,70013.0,70012.0,0.55215475]
[1730163251703,0.0571,70025.0,70023.0,0.064299]
[1730163253012,0.0571,70025.0,70023.0,0.277423]
[1730163253216,0.0571,70025.0,70023.0,0.23943229]
[1730163253402,0.0571,70025.0,70024.0,0.20177163]
[1730163254307,0.0681,70025.0,70024.0,0.20177163]
[1730163254514,0.011,70025.0,70024.0,0.20177163]
[1730163254906,0.1079,70032.0,70028.0,0.064294]
[1730163254907,0.0551,70032.0,70028.0,0.064294]
[1730163255502,0.0551,70032.0,70031.0,0.064292]
[1730163256422,0.0661,70032.0,70031.0,0.064292]
[1730163256809,0.0681,70032.0,70031.0,0.064292]
[1730163257010,0.0681,70032.0,70031.0,0.065292]
[1730163257510,0.4289,70032.0,70031.0,0.065292]
[1730163257702,0.4289,70032.0,70031.0,0.066292]
[1730163259011,0.3738,70032.0,70031.0,0.066292]
[1730163261118,0.013,70032.0,70031.0,0.066292]
[1730163262112,0.013,70032.0,70031.0,0.2817054]
[1730163263317,0.013,70032.0,70031.0,0.30706186]
[1730163264616,0.05123868,70046.0,70031.0,1.17289449]
[1730163264828,0.05123868,70046.0,70045.0,0.20175163]
[1730163265027,0.05123868,70046.0,70045.0,0.63003163]
[1730163266328,0.06023868,70046.0,70045.0,0.63103163]
[1730163266723,0.06223868,70046.0,70045.0,0.20375163]
[1730163267028,0.06223868,70046.0,70045.0,0.066279]
[1730163267424,0.011,70046.0,70045.0,0.066279]
[1730163267615,0.011,70046.0,70045.0,0.20375163]
[1730163267817,0.011,70046.0,70045.0,0.56455163]
[1730163269127,0.011,70046.0,70045.0,0.427079]
[1730163269330,0.011,70046.0,70045.0,0.066279]
[1730163269829,0.13747263,70042.0,70036.0,0.3608]
[1730163270031,0.09509014,70041.0,70036.0,0.38696131]
[1730163270324,0.09509014,70040.0,70039.0,0.27863734]
[1730163270527,0.09509014,70040.0,70039.0,0.064285]
[1730163270728,0.09509014,70040.0,70039.0,0.76252557]
[1730163271426,0.09509014,70040.0,70039.0,1.1999982]
[1730163271628,0.18461633,70045.0,70040.0,0.064284]
[1730163271830,0.18461633,70045.0,70044.0,0.49827263]
[1730163272132,0.18461633,70045.0,70044.0,0.71324618]
[1730163272326,0.18461633,70048.0,70047.0,0.064277]
[1730163272632,0.18461633,70050.0,70049.0,0.064276]
[1730163272819,0.18461633,70050.0,70049.0,0.20174863]
[1730163272820,0.2195952,70050.0,70049.0,0.20174863]
[1730163273016,0.03497887,70050.0,70049.0,0.20174863]
[1730163273220,0.21947784,70050.0,70049.0,0.20174863]
[1730163273621,0.03497887,70050.0,70049.0,0.20174863]
[1730163274625,0.064267,70058.0,70053.0,0.064272]
[1730163275133,0.064269,70057.0,70053.0,0.064272]
[1730163276021,0.064269,70057.0,70053.0,0.066272]
[1730163276224,0.001,70058.0,70054.0,0.064271]
[1730163276423,0.064271,70054.0,70053.0,0.001]
[1730163276619,0.064271,70054.0,70053.0,0.002]
[1730163276834,0.064271,70054.0,70053.0,0.001]
[1730163277031,0.001,70057.0,70054.0,0.064271]
[1730163278131,0.06427,70055.0,70054.0,0.064271]
[1730163278325,0.002,70054.0,70046.0,0.064278]
[1730163278528,0.3608,70052.0,70051.0,0.064274]
[1730163279132,0.36188,70059.0,70050.0,0.13747263]
[1730163279133,0.3608,70059.0,70053.0,0.001]
[1730163279327,0.066268,70057.0,70055.0,0.06427]
[1730163279529,0.066268,70057.0,70032.0,0.3608]
[1730163279530,0.3608,70056.0,70032.0,0.3608]
[1730163279728,0.3608,70047.0,70045.0,0.064279]
[1730163280042,0.3608,70047.0,70046.0,0.2774108]
[1730163280239,0.3608,70047.0,70046.0,0.064278]
[1730163280440,0.3608,70047.0,70046.0,0.27906097]
[1730163280629,0.3608,70047.0,70046.0,0.064278]
[1730163280952,0.3608,70047.0,70046.0,0.27906097]
[1730163281437,0.0598,70050.0,70049.0,0.064276]
[1730163281627,0.0598,70050.0,70049.0,0.20174863]
[1730163282227,0.0598,70050.0,70049.0,0.13747263]
[1730163282440,0.0598,70050.0,70049.0,0.20174863]
[1730163283137,0.0598,70050.0,70049.0,0.20274863]
[1730163283333,0.0628,70050.0,70049.0,0.20374863]
[1730163284137,0.0628,70050.0,70049.0,0.066276]
[1730163284544,0.127075,70050.0,70049.0,0.002]
[1730163284734,0.127075,70050.0,70049.0,0.02826755]
[1730163287333,0.16205738,70050.0,70049.0,0.02826755]
[1730163287835,0.16205642,70050.0,70049.0,0.02826755]
[1730163289032,0.20590683,70050.0,70049.0,0.02826755]
[1730163289535,0.31577004,70050.0,70041.0,0.13747263]
[1730163289739,0.22836983,70045.0,70041.0,0.13747263]
[1730163289930,0.13006931,70044.0,70043.0,0.064281]
[1730163290334,0.1300692,70044.0,70043.0,0.27929683]
[1730163290837,0.51748279,70044.0,70041.0,0.02777409]
[1730163291036,0.1300692,70043.0,70041.0,0.02777409]
[1730163291232,0.1300692,70042.0,70041.0,0.02777409]
[1730163291734,0.1300692,70042.0,70041.0,0.02677409]
[1730163292043,0.18869493,70042.0,70041.0,0.09105709]
[1730163292234,0.18869493,70042.0,70041.0,0.09005709]
[1730163292436,0.1300692,70042.0,70041.0,0.09105709]
[1730163292841,0.1300692,70042.0,70041.0,0.09205709]
[1730163294140,0.1300692,70042.0,70041.0,0.02777409]
[1730163294929,0.05123748,70042.0,70041.0,0.02777409]
[1730163295139,0.09508926,70042.0,70041.0,0.02777409]
[1730163295533,0.13007474,70042.0,70041.0,0.02777409]
[1730163296739,0.49087474,70042.0,70041.0,0.02777409]
[1730163297145,0.13007474,70042.0,70041.0,0.02777409]
[1730163297344,0.49087474,70042.0,70041.0,0.02777409]
[1730163297549,0.3608,70042.0,70041.0,0.02777409]
[1730163298148,0.425082,70042.0,70041.0,0.02777409]
[1730163298950,0.425082,70042.0,70041.0,0.002]
[1730163299745,0.064291,70032.0,70031.0,0.04253346]
[1730163299946,0.064292,70031.0,70028.0,0.04253346]
[1730163300148,0.124792,70031.0,70028.0,0.04253346]
[1730163300740,0.124792,70031.0,70029.0,0.13747263]
[1730163300936,0.3608,70034.0,70033.0,0.06429]
[1730163301152,0.0555,70041.0,70038.0,0.064285]
[1730163301452,0.0555,70041.0,70040.0,0.20175663]
[1730163302553,0.0555,70041.0,70038.0,0.18000609]
[1730163302738,0.0565,70041.0,70038.0,0.13747263]
[1730163302940,0.0565,70041.0,70038.0,0.18000609]
[1730163303442,0.0575,70041.0,70038.0,0.18000609]
[1730163303845,0.0575,70041.0,70039.0,0.04253346]
[1730163304049,0.0575,70041.0,70038.0,0.24429109]
[1730163304256,0.0575,70041.0,70039.0,0.04253346]
[1730163304751,0.0575,70041.0,70038.0,0.20175763]
[1730163305250,0.0575,70041.0,70038.0,0.24429109]
[1730163305552,0.0575,70041.0,70038.0,0.10681846]
[1730163305854,0.0575,70041.0,70039.0,0.064284]
[1730163306056,0.002,70041.0,70040.0,0.064284]
[1730163307248,0.001,70041.0,70040.0,0.10681746]
[1730163307451,0.002,70041.0,70040.0,0.064284]
[1730163308151,0.001,70041.0,70040.0,0.066284]
[1730163308645,0.3608,70045.0,70044.0,0.06251255]
[1730163309446,0.3608,70045.0,70044.0,0.10509378]
[1730163310051,0.3628,70045.0,70044.0,0.10509378]
[1730163310246,0.002,70045.0,70044.0,0.06251255]
[1730163310450,0.002,70045.0,70044.0,0.10509378]
[1730163310451,0.004,70045.0,70044.0,0.10509378]
[1730163310751,0.004,70045.0,70044.0,0.10509481]
[1730163310951,0.004,70045.0,70044.0,0.06251255]
[1730163312758,0.13406903,70045.0,70044.0,0.06251255]
[1730163312943,0.13406903,70045.0,70044.0,0.19998518]
[1730163313143,0.08283195,70045.0,70044.0,0.4137877]
[1730163313546,0.08283195,70045.0,70044.0,0.4698877]
[1730163314149,0.19599283,70045.0,70044.0,0.8981677]
[1730163314443,0.23984172,70045.0,70044.0,0.8981677]
[1730163314652,0.13406903,70045.0,70044.0,1.2081677]
[1730163314942,0.08283195,70045.0,70044.0,1.2081677]
[1730163315358,0.19597081,70045.0,70044.0,1.2081677]
[1730163315565,0.2398197,70045.0,70044.0,1.2081677]
[1730163316158,0.08283195,70045.0,70044.0,0.8981677]
[1730163316456,0.08283195,70045.0,70044.0,0.4137877]
[1730163316765,0.08283195,70045.0,70044.0,0.4735877]
[1730163317070,0.2398197,70045.0,70044.0,0.4735877]
[1730163317248,0.13406235,70045.0,70044.0,0.4735877]
[1730163317553,0.08283195,70045.0,70044.0,0.4735877]
[1730163319662,0.004,70045.0,70044.0,0.4735877]
[1730163319955,0.004,70045.0,70044.0,0.4137877]
[1730163321057,0.004,70045.0,70044.0,0.27631507]
[1730163321557,0.004,70045.0,70044.0,0.4137877]
[1730163321755,0.004,70045.0,70044.0,0.8420677]
[1730163323358,0.004,70045.0,70044.0,0.4137877]
[1730163327564,0.13405785,70045.0,70044.0,0.4137877]
[1730163328160,0.31948164,70045.0,70044.0,0.4137877]
[1730163328670,0.13405785,70045.0,70044.0,0.4137877]
[1730163329966,0.05523268,70045.0,70044.0,0.27631507]
[1730163330166,0.08282556,70045.0,70044.0,0.27631507]
[1730163330664,0.08282556,70045.0,70044.0,0.06251255]
[1730163331456,0.08282556,70045.0,70044.0,0.19998518]
[1730163332368,0.08282556,70045.0,70044.0,0.06251255]
[1730163332671,0.064284,70040.0,70030.0,0.36294161]
[1730163332972,0.15370275,70039.0,70035.0,0.064288]
[1730163333265,0.15370275,70038.0,70036.0,0.064287]
[1730163333473,0.23255065,70037.0,70032.0,0.064291]
[1730163333658,0.064292,70031.0,70030.0,0.00214161]
[1730163333967,0.15937002,70031.0,70030.0,0.00914161]
[1730163334267,0.21867002,70031.0,70030.0,0.00914161]
[1730163334766,0.123592,70031.0,70030.0,0.00914161]
[1730163335168,0.123592,70031.0,70030.0,0.01614161]
[1730163335369,0.064296,70027.0,70023.0,0.064299]
[1730163335562,0.13747263,70024.0,70011.0,0.40338367]
[1730163335767,0.3608,70021.0,70016.0,0.064306]
[1730163335976,0.0606,70020.0,70014.0,0.35256957]
[1730163336167,0.0606,70020.0,70014.0,0.13747263]
[1730163336369,0.0606,70020.0,70016.0,0.064306]
[1730163336567,0.0606,70020.0,70014.0,0.13747263]
[1730163336772,0.0606,70020.0,70013.0,0.064308]
[1730163337071,0.19807263,70020.0,70014.0,0.21478751]
[1730163337272,0.19807263,70020.0,70014.0,0.21578751]
[1730163337671,0.064303,70019.0,70014.0,0.21578751]
[1730163338071,0.064303,70019.0,70014.0,0.28009551]
[1730163338273,0.064303,70019.0,70014.0,0.28109551]
[1730163338471,0.064303,70019.0,70015.0,0.064307]
[1730163338664,0.0606,70020.0,70015.0,0.064307]
[1730163338969,0.0606,70020.0,70019.0,0.064303]
[1730163339767,0.36200001,70027.0,70017.0,0.13747263]
[1730163339969,0.3608,70027.0,70026.0,0.20176963]
[1730163341064,0.3638,70027.0,70026.0,0.20176963]
[1730163341471,0.3638,70027.0,70026.0,0.064297]
[1730163341772,0.064297,70026.0,70017.0,0.001]
[1730163342075,0.064297,70026.0,70023.0,0.064299]
[1730163342272,0.064297,70026.0,70024.0,0.2]
[1730163342784,0.064298,70025.0,70021.0,0.21466352]
[1730163342973,0.064298,70025.0,70020.0,0.064302]
[1730163342974,0.0599,70024.0,70020.0,0.064302]
[1730163343279,0.0599,70024.0,70021.0,0.41466352]
[1730163343785,0.0599,70024.0,70022.0,0.0643]
[1730163344170,0.0599,70024.0,70021.0,0.2]
[1730163344374,0.0599,70024.0,70023.0,0.20177163]
[1730163345174,0.003,70026.0,70025.0,0.064298]
[1730163345377,0.002,70026.0,70025.0,0.064298]
[1730163345672,0.3608,70027.0,70026.0,0.064297]
[1730163346474,0.0606,70032.0,70029.0,0.064294]
[1730163346672,0.0606,70032.0,70029.0,0.20176663]
[1730163347874,0.0606,70032.0,70030.0,0.064293]
[1730163348583,0.0606,70032.0,70031.0,0.064292]
[1730163348880,0.0646,70032.0,70031.0,0.064292]
[1730163349085,0.0716,70032.0,70031.0,0.064292]
[1730163349475,0.0676,70032.0,70031.0,0.064292]
[1730163349787,0.0716,70032.0,70031.0,0.064292]
[1730163350286,0.135891,70032.0,70031.0,0.064292]
[1730163350479,0.134891,70032.0,70031.0,0.064292]
[1730163351285,0.128891,70032.0,70031.0,0.064292]
[1730163351488,0.133891,70032.0,70031.0,0.064292]
[1730163351882,0.124891,70032.0,70031.0,0.064292]
[1730163352083,0.133891,70032.0,70031.0,0.064292]
[1730163352985,0.128891,70032.0,70031.0,0.064292]
[1730163353189,0.0696,70032.0,70031.0,0.064292]
[1730163354592,0.0646,70032.0,70031.0,0.064292]
[1730163354886,0.0696,70032.0,70031.0,0.064292]
[1730163355386,0.0686,70032.0,70031.0,0.064292]
[1730163355587,0.0676,70032.0,70031.0,0.064292]
[1730163356778,0.0666,70032.0,70031.0,0.064292]
[1730163357674,0.1607067,70032.0,70031.0,0.064292]
[1730163358489,0.1587067,70032.0,70031.0,0.064292]
[1730163358782,0.1617067,70032.0,70031.0,0.064292]
[1730163359386,0.1607067,70032.0,70031.0,0.064292]
[1730163359993,0.1001067,70032.0,70031.0,0.064292]
[1730163361284,0.0971067,70032.0,70031.0,0.27915578]
[1730163361485,0.0951067,70032.0,70031.0,0.27915578]
[1730163361792,0.15687606,70032.0,70031.0,1.06831578]
[1730163361983,0.07884694,70032.0,70031.0,1.12841578]
[1730163362281,0.03498849,70032.0,70031.0,1.12841578]
[1730163362485,0.07884694,70032.0,70031.0,1.12841578]
[1730163363892,0.04385845,70032.0,70031.0,0.76761578]
[1730163364190,0.04385845,70032.0,70031.0,0.27915578]
[1730163364396,0.0951067,70032.0,70031.0,0.27915578]
[1730163364689,0.1173,70033.0,70031.0,0.21486378]
[1730163364893,0.1173,70033.0,70032.0,0.064291]
[1730163365293,0.0565,70037.0,70035.0,0.064288]
[1730163365503,0.36196,70038.0,70036.0,0.064287]
[1730163365796,0.3608,70038.0,70036.0,0.064287]
[1730163367095,0.3608,70038.0,70030.0,0.13747263]
[1730163367096,0.3608,70038.0,70037.0,0.064287]
[1730163369395,0.064287,70037.0,70026.0,0.13747263]
[1730163369696,0.064287,70037.0,70034.0,0.064289]
[1730163369902,0.064287,70037.0,70035.0,0.064288]
[1730163370791,0.3608,70038.0,70026.0,0.13747263]
[1730163370996,0.3608,70038.0,70036.0,0.064288]
[1730163371595,0.425086,70038.0,70036.0,0.064288]
[1730163372012,0.064287,70037.0,70032.0,0.10687467]
[1730163372187,0.13747263,70037.0,70032.0,0.064291]
[1730163372494,0.13747263,70033.0,70029.0,0.04258367]
[1730163372899,0.13747263,70033.0,70031.0,0.21552829]
[1730163373292,0.13747263,70033.0,70029.0,0.04258367]
[1730163373494,0.13747263,70033.0,70030.0,0.04258367]
[1730163373801,0.13747263,70033.0,70032.0,0.064291]
[1730163374700,0.13747263,70033.0,70030.0,0.04258367]
[1730163374890,0.20176263,70033.0,70030.0,0.10687567]
[1730163375099,0.20176263,70033.0,70031.0,0.27769806]
[1730163375501,0.06429,70033.0,70031.0,0.27769806]
[1730163377203,0.3608,70035.0,70032.0,0.064291]
[1730163379007,0.3608,70035.0,70034.0,0.064289]
[1730163379712,0.45590334,70035.0,70034.0,0.064289]
[1730163381800,0.49089279,70035.0,70034.0,0.064289]
[1730163382810,0.13009279,70035.0,70034.0,0.20176163]
[1730163383016,0.07884635,70035.0,70034.0,0.20176163]
[1730163383313,0.07884635,70035.0,70034.0,0.40176163]
[1730163384020,0.07883766,70035.0,70034.0,0.40176163]
[1730163384629,0.15704,70039.0,70034.0,0.40176163]
[1730163384820,0.15704,70039.0,70038.0,0.064286]
[1730163385620,0.2358775,70039.0,70038.0,0.064286]
[1730163385836,0.19202552,70039.0,70038.0,0.064286]
[1730163386423,0.15704,70039.0,70038.0,0.064286]
[1730163387532,0.05124083,70042.0,70034.0,0.3633605]
[1730163387733,0.05124083,70042.0,70041.0,0.064283]
[1730163388332,0.49935263,70043.0,70041.0,0.064283]
[1730163388531,0.49827263,70043.0,70041.0,0.064283]
[1730163392529,0.09009368,70042.0,70041.0,0.064283]
[1730163393030,0.09009368,70042.0,70037.0,0.0425407]
[1730163393234,0.15437968,70038.0,70037.0,0.0425407]
[1730163394433,0.20158338,70038.0,70037.0,0.0425407]
[1730163396334,0.62994338,70038.0,70037.0,0.0425407]
[1730163396541,0.69576223,70038.0,70018.0,0.3608]
[1730163396737,0.3608,70026.0,70025.0,0.064298]
[1730163396937,0.55520286,70026.0,70025.0,0.064298]
[1730163397344,0.0643,70023.0,70021.0,0.064301]
[1730163397527,0.14315467,70022.0,70021.0,0.064301]
[1730163398129,0.064304,70018.0,70016.0,0.064305]
[1730163398435,0.064304,70018.0,70011.0,0.20214222]
[1730163398436,0.21615205,70017.0,70013.0,0.08968027]
[1730163398735,0.13010586,70016.0,70013.0,0.064309]
[1730163399039,0.07885467,70015.0,70013.0,0.064309]
[1730163399239,0.07885467,70014.0,70013.0,0.064309]
[1730163399841,0.07885467,70014.0,70011.0,0.22769624]
[1730163400041,0.13729738,70012.0,70011.0,0.22769624]
[1730163400239,0.21615205,70012.0,70011.0,0.22769624]
[1730163400544,0.21615205,70012.0,70011.0,0.29200624]
[1730163400735,0.57695205,70012.0,70011.0,0.26645222]
[1730163400941,0.62820324,70012.0,70011.0,0.26645222]
[1730163401140,0.69251324,70012.0,70011.0,0.20214222]
[1730163401542,0.69251324,70012.0,70011.0,0.00214222]
[1730163401741,0.69251324,70012.0,70008.0,0.08982841]
[1730163401955,0.13010586,70011.0,70008.0,0.08982841]
[1730163402147,0.07885467,70010.0,70009.0,0.2]
[1730163402348,0.36188,70012.0,70009.0,0.30892024]
[1730163402547,0.13729738,70010.0,70009.0,0.28507413]
[1730163402744,0.13729738,70010.0,70009.0,0.39399436]
[1730163402956,0.13729738,70010.0,70009.0,0.30892023]
[1730163403254,0.13729738,70010.0,70009.0,0.37323223]
[1730163403646,0.13729738,70010.0,70009.0,0.17323223]
[1730163404648,0.13729738,70010.0,70009.0,0.10892023]
[1730163404949,0.13729738,70010.0,70009.0,0.10892126]
[1730163405260,0.20160838,70010.0,70009.0,0.07085836]
[1730163405548,0.20160838,70010.0,70008.0,0.07085836]
[1730163405757,0.13729738,70010.0,70008.0,0.07085836]
[1730163406550,0.49809738,70010.0,70007.0,0.07085836]
[1730163406748,0.13729738,70008.0,70007.0,0.13517236]
[1730163407045,0.3608,70010.0,70009.0,0.064312]
[1730163407242,0.3608,70010.0,70009.0,0.24404362]
[1730163407443,0.3608,70010.0,70009.0,0.24403616]
[1730163407656,0.3608,70010.0,70009.0,0.17323556]
[1730163408247,0.3608,70019.0,70018.0,0.064304]
[1730163409356,0.49809738,70019.0,70018.0,0.064304]
[1730163411052,0.3608,70019.0,70018.0,0.064304]
[1730163411252,0.18566947,70020.0,70019.0,0.064303]
[1730163411749,0.13729738,70023.0,70014.0,0.0576]
[1730163411953,0.13729738,70023.0,70022.0,0.0643]
[1730163414658,0.17229295,70023.0,70022.0,0.0643]
[1730163417353,0.13729738,70023.0,70022.0,0.0643]
[1730163419158,0.61177738,70023.0,70022.0,0.0643]
[1730163419352,0.67607638,70023.0,70022.0,0.0643]
[1730163421051,0.61177738,70023.0,70022.0,0.0643]
[1730163421252,0.67607638,70023.0,70022.0,0.0643]
[1730163423560,0.67607638,70023.0,70014.0,0.08316227]
[1730163423561,1.17751476,70023.0,70014.0,0.05662759]
[1730163423866,0.06431,70011.0,70010.0,0.064311]
[1730163424054,0.20160738,70011.0,70010.0,0.064311]
[1730163424464,0.09013232,70011.0,70007.0,0.05662759]
[1730163424656,0.09013232,70008.0,70007.0,0.05662759]
[1730163424863,0.09013232,70008.0,70007.0,0.12094159]
[1730163425168,0.09013232,70008.0,70007.0,0.064314]
[1730163426464,0.13733367,70010.0,70007.0,0.064314]
[1730163426665,0.13733367,70010.0,70009.0,0.0568692]
[1730163428965,0.3608,70015.0,70009.0,0.0568692]
[1730163429157,0.3608,70015.0,70004.0,0.02603238]
[1730163429158,0.3608,70015.0,70014.0,0.1211772]
[1730163429554,0.3608,70015.0,70014.0,0.264308]
[1730163431659,0.3608,70015.0,70014.0,0.064308]
[1730163431857,0.3608,70023.0,70022.0,0.0643]
[1730163432363,0.43965891,70023.0,70022.0,0.0643]
[1730163432567,0.58220192,70023.0,70022.0,0.0643]
[1730163433072,0.07885594,70023.0,70022.0,0.20163367]
[1730163433372,0.07885594,70023.0,70022.0,0.56243367]
[1730163433565,0.03499502,70023.0,70022.0,0.56243367]
[1730163433773,0.03499502,70023.0,70022.0,0.4251]
[1730163434362,0.03499502,70023.0,70022.0,0.85354]
[1730163435172,0.03499502,70023.0,70022.0,0.4251]
[1730163435371,0.03499502,70023.0,70022.0,0.4511695]
[1730163435877,0.03499039,70023.0,70022.0,0.58850317]
[1730163436062,0.03499039,70023.0,70022.0,0.80391847]
[1730163436963,0.03499039,70023.0,70022.0,1.23235847]
[1730163437972,0.00214263,70032.0,70031.0,0.064292]
[1730163438169,0.03713153,70032.0,70031.0,0.064292]
[1730163438765,0.00214263,70032.0,70031.0,0.064292]
[1730163439069,0.08098763,70032.0,70031.0,0.064292]
[1730163439266,0.03713153,70032.0,70031.0,0.064292]
[1730163440367,0.00214263,70032.0,70031.0,0.064292]
[1730163440982,0.00214263,70032.0,70031.0,0.08982551]
[1730163442165,0.3608,70039.0,70031.0,0.02553351]
[1730163442366,0.3608,70039.0,70031.0,0.35024011]
[1730163443976,0.13733367,70041.0,70031.0,0.35024011]
[1730163444171,0.13733367,70041.0,70033.0,0.3608]
[1730163444480,0.13733367,70037.0,70030.0,0.3608]
[1730163444778,0.13733367,70037.0,70036.0,0.064288]
[1730163446367,0.3608,70041.0,70039.0,0.064285]
[1730163446685,0.49813367,70041.0,70040.0,0.064284]
[1730163447174,0.49813367,70041.0,70035.0,0.064288]
[1730163447371,0.49813367,70041.0,70030.0,0.3608]
[1730163447372,0.13733367,70036.0,70030.0,0.3608]
[1730163447572,0.07884063,70035.0,70031.0,0.21461955]
[1730163447966,0.07884063,70035.0,70029.0,0.3608]
[1730163448169,0.07884063,70035.0,70031.0,0.21511054]
[1730163448370,0.07884063,70035.0,70029.0,0.57591054]
[1730163448579,0.07884063,70035.0,70030.0,0.21511054]
[1730163448779,0.07884063,70035.0,70034.0,0.064289]
[1730163450575,0.07884063,70035.0,70028.0,0.08544259]
[1730163450576,0.43964063,70035.0,70028.0,0.08544259]
[1730163450779,0.28006224,70030.0,70029.0,0.064293]
[1730163450983,0.07884063,70030.0,70029.0,0.064293]
[1730163451274,0.18118739,70030.0,70029.0,0.064293]
[1730163451879,0.13733367,70030.0,70029.0,0.064293]
[1730163452776,0.21618238,70030.0,70029.0,0.064293]
[1730163452977,0.21618238,70030.0,70028.0,0.02564259]
[1730163453180,0.058,70029.0,70025.0,0.064297]
[1730163453372,0.13733367,70026.0,70025.0,0.064297]
[1730163454892,0.13733367,70026.0,70021.0,0.0643]
[1730163455078,0.13733367,70022.0,70021.0,0.09041524]
[1730163455280,0.13733367,70022.0,70021.0,0.02611524]
[1730163455480,0.13733367,70022.0,70016.0,0.06644704]
[1730163455684,0.13733367,70017.0,70016.0,0.06644704]
[1730163455912,0.13733367,70017.0,70016.0,0.09218649]
[1730163456075,0.13733367,70017.0,70016.0,0.29218649]
[1730163458790,0.19553367,70020.0,70016.0,0.22788149]
[1730163458980,0.19553367,70020.0,70018.0,0.064304]
[1730163459688,0.19553367,70020.0,70019.0,0.064303]
[1730163459885,0.0582,70020.0,70019.0,0.064303]
[1730163461190,0.0382,70020.0,70019.0,0.064303]
[1730163462880,0.3608,70022.0,70019.0,0.064303]
[1730163463082,0.3608,70022.0,70021.0,0.064301]
[1730163464080,0.13733367,70025.0,70021.0,0.064301]
[1730163466082,0.3608,70022.0,70016.0,0.20214204]
[1730163466289,0.13733367,70017.0,70016.0,0.20214204]
[1730163466490,0.09012482,70017.0,70016.0,0.20214204]
[1730163466695,0.14216233,70021.0,70016.0,0.41623644]
[1730163466696,0.23228715,70021.0,70016.0,0.41623644]
[1730163466991,0.23228715,70021.0,70018.0,0.064304]
[1730163467292,0.23228715,70021.0,70019.0,0.21379821]
[1730163469893,0.15342482,70021.0,70019.0,0.27810121]
[1730163470396,0.15342482,70021.0,70019.0,0.064303]
[1730163470695,0.15342482,70021.0,70020.0,0.21514146]
[1730163471700,0.23228775,70021.0,70020.0,0.21514146]
[1730163471902,0.15342482,70021.0,70020.0,0.21514146]
[1730163474994,0.15342482,70021.0,70020.0,0.27944346]
[1730163476085,0.21772582,70021.0,70020.0,0.27944346]
[1730163476494,0.127601,70021.0,70020.0,0.27944346]
[1730163479007,0.25772133,70021.0,70020.0,0.27944346]
[1730163479296,0.17885829,70021.0,70020.0,0.27944346]
[1730163479496,0.2577214,70021.0,70020.0,0.27944346]
[1730163481191,0.6185214,70021.0,70020.0,0.27944346]
[1730163485705,0.5552214,70021.0,70020.0,0.27944346]
[1730163485897,0.5552214,70021.0,70020.0,0.36956828]
[1730163485898,0.1301204,70021.0,70020.0,0.36956828]
[1730163486202,0.07886311,70021.0,70020.0,0.36956828]
[1730163486898,0.3608,70029.0,70028.0,0.064295]
[1730163489700,0.09012482,70031.0,70025.0,0.0639]
[1730163490004,0.09012482,70031.0,70030.0,0.064293]
[1730163493691,0.15441682,70031.0,70030.0,0.064293]
[1730163494012,0.23327267,70031.0,70030.0,0.064293]
[1730163494196,0.28452529,70031.0,70030.0,0.064293]
[1730163494907,0.13010847,70031.0,70030.0,0.36916336]
[1730163495104,0.07885585,70031.0,70030.0,0.36916336]
[1730163495403,0.07885585,70031.0,70030.0,0.79756336]
[1730163495804,0.07885585,70031.0,70030.0,0.70743854]
[1730163496108,0.16898067,70031.0,70030.0,0.70743854]
[1730163496292,0.16898067,70031.0,70030.0,0.27903854]
[1730163496806,0.22022685,70031.0,70030.0,0.27903854]
[1730163497004,0.16898067,70031.0,70030.0,0.27903854]
[1730163497514,0.23327267,70031.0,70030.0,0.21474554]
[1730163497704,0.28451885,70031.0,70030.0,0.21474554]
[1730163497895,0.064293,70030.0,70028.0,0.21416484]
[1730163498208,0.07885585,70029.0,70026.0,0.064297]
[1730163498399,0.3608,70027.0,70023.0,0.064299]
[1730163498599,0.3608,70027.0,70016.0,0.00214204]
[1730163498600,0.24454864,70024.0,70019.0,0.425103]
[1730163498800,0.09012482,70021.0,70020.0,0.064302]
[1730163499004,0.07885585,70021.0,70020.0,0.27722739]
[1730163500006,0.03499367,70021.0,70020.0,0.27722739]
[1730163501406,0.03499454,70021.0,70020.0,0.27722739]
[1730163501607,0.07885782,70021.0,70020.0,0.27722739]
[1730163501801,0.03499454,70021.0,70020.0,0.27722739]
[1730163502114,0.09012482,70023.0,70021.0,0.064301]
[1730163502300,0.09012482,70023.0,70021.0,0.12110711]
[1730163502506,0.18024964,70023.0,70020.0,0.05680611]
[1730163502799,0.064303,70019.0,70017.0,0.05680611]
[1730163503011,0.45092482,70018.0,70017.0,0.05680611]
[1730163503196,0.45092482,70018.0,70017.0,0.27166321]
[1730163503402,0.57302882,70018.0,70017.0,0.27166321]
[1730163503702,0.57302882,70018.0,70017.0,0.2148571]
[1730163509411,0.064306,70016.0,70015.0,0.07098304]
[1730163509611,0.064306,70016.0,70012.0,0.07098304]